[Event "Suryabinayak Municipality Open B 2024"]
[Site "Bhaktapur"]
[Date "2024.12.03"]
[Round "1.2"]
[White "Parajuli, Kshitiz"]
[Black "Silwal, Purushottam"]
[Result "0-1"]
[ECO "B94"]
[WhiteElo "1725"]
[BlackElo "2058"]
[Annotator "RC"]
[PlyCount "62"]
[EventDate "2024.12.02"]
[EventCountry "NEP"]
[SourceTitle "playchess.com"]
[Source "ChessBase"]
[SourceQuality "1"]
[TimeControl "5400+30"]

1. e4 {[%emt 0:02:27]} c5 {[%emt 0:00:13]} 2. Nf3 {[%emt 0:00:20]} d6 {[%emt 0:00:08]} 3. d4 {[%emt 0:00:05]} cxd4 {[%emt 0:00:04]} 4. Nxd4 {[%emt 0:00:04]} Nf6 {[%emt 0:00:08]} 5. Nc3 {[%emt 0:00:06]} a6 {[%emt 0:00:07]} 6. Bg5 {[%emt 0:00:50]} Nbd7 {[%emt 0:00:07]} 7. f4 {[%emt 0:03:34]} Qc7 {[%emt 0:00:06]} 8. Be2 {[%emt 0:01:25]} h6 {[%emt 0:04:01]} 9. Bh4 e6 10. f5 {[%emt 0:07:36]} e5 {[%emt 0:02:28]} 11. Nb3 {[%emt 0:07:10]} Be7 {[%emt 0:08:13]} 12. g4 {[%emt 0:07:48]} b5 {[%emt 0:01:24]} 13. g5 {[%emt 0:04:25]} hxg5 {[%emt 0:00:09]} 14. Bxg5 {[%emt 0:00:18]} Bb7 {[%emt 0:00:23]} 15. Qd3 {[%emt 0:06:42]} b4 {[%emt 0:00:10]} 16. Bxf6 {[%emt 0:00:07]} Nxf6 {[%emt 0:00:47]} 17. Nd5 {[%emt 0:00:40]} Nxd5 {[%emt 0:00:11]} 18. exd5 {[%emt 0:00:12]} Bh4+ {[%emt 0:00:37]} 19. Kd1 {[%emt 0:04:14]} Rc8 {[%emt 0:03:17]} 20. c3 {[%emt 0:08:31]} bxc3 {[%emt 0:00:40]} 21. Rc1 {[%emt 0:00:01]} c2+ {[%emt 0:00:11]} 22. Rxc2 {[%emt 0:01:29]} Qxc2+ {[%emt 0:00:06]} 23. Qxc2 {[%emt 0:00:10]} Rxc2 {[%emt 0:00:03]} 24. Kxc2 {[%emt 0:00:08]} Bxd5 {[%emt 0:00:05]} 25. Rd1 {[%emt 0:03:57]} Be4+ {[%emt 0:00:07]} 26. Kc3 {[%emt 0:00:18]} Ke7 {[%emt 0:00:15]} 27. Bxa6 {[%emt 0:02:42]} Bxf5 {[%emt 0:01:47]} 28. Bb7 {[%emt 0:03:26]} Bf2 {[%emt 0:01:19]} 29. a4 {[%emt 0:03:29]} Rh3+ {[%emt 0:00:15]} 30. Kb4 {[%emt 0:00:40]} Bc2 {[%emt 0:00:03]} 31. Rd2 {[%emt 0:00:30]} Be1 {[%emt 0:00:10]} 0-1

[Event "Suryabinayak Municipality Open B 2024"]
[Site "Bhaktapur"]
[Date "2024.12.03"]
[Round "1.3"]
[White "Nepal, Prakash Chandra"]
[Black "Khadka, Govinda"]
[Result "1-0"]
[ECO "D96"]
[WhiteElo "2012"]
[BlackElo "1698"]
[Annotator "RC"]
[PlyCount "66"]
[EventDate "2024.12.02"]
[EventCountry "NEP"]
[SourceTitle "playchess.com"]
[Source "ChessBase"]
[SourceQuality "1"]
[TimeControl "5400+30"]

1. d4 {[%emt 0:00:03]} Nf6 {[%emt 0:00:32]} 2. c4 {[%emt 0:00:08]} g6 {[%emt 0:01:20]} 3. Nc3 {[%emt 0:00:08]} d5 {[%emt 0:01:21]} 4. Nf3 {[%emt 0:00:12]} Bg7 {[%emt 0:00:53]} 5. Qb3 {[%emt 0:00:10]} c6 {[%emt 0:01:04]} 6. cxd5 {[%emt 0:00:29]} Nxd5 {[%emt 0:00:40]} 7. e4 {[%emt 0:00:24]} Nxc3 {[%emt 0:03:03]} 8. bxc3 {[%emt 0:00:03]} O-O {[%emt 0:00:28]} 9. Ba3 Re8 {[%emt 0:05:12]} 10. Bc4 {[%emt 0:06:34]} e6 {[%emt 0:01:13]} 11. O-O {[%emt 0:00:54]} b5 {[%emt 0:00:36]} 12. Be2 {[%emt 0:00:11]} a5 {[%emt 0:00:28]} 13. Rad1 {[%emt 0:00:49]} Na6 {[%emt 0:03:38]} 14. Rfe1 {[%emt 0:03:19]} a4 {[%emt 0:05:49]} 15. Qc2 {[%emt 0:01:36]} Qa5 {[%emt 0:04:26]} 16. Bd6 {[%emt 0:04:53]} Qd8 {[%emt 0:02:38]} 17. e5 {[%emt 0:01:28]} Bf8 {[%emt 0:00:22]} 18. Bxf8 {[%emt 0:00:18]} Rxf8 {[%emt 0:00:06]} 19. Nd2 {[%emt 0:10:21]} Nc7 {[%emt 0:02:58]} 20. Ne4 {[%emt 0:00:13]} Nd5 {[%emt 0:01:12]} 21. c4 {[%emt 0:00:46]} Nf4 {[%emt 0:02:40]} 22. Nf6+ {[%emt 0:00:26]} Kg7 {[%emt 0:00:24]} 23. cxb5 {[%emt 0:01:36]} Nxe2+ {[%emt 0:01:15]} 24. Qxe2 {[%emt 0:00:03]} cxb5 {[%emt 0:01:04]} 25. Qxb5 {[%emt 0:00:28]} Ba6 {[%emt 0:00:35]} 26. Qb4 {[%emt 0:00:22]} Qb8 {[%emt 0:02:12]} 27. Qd2 {[%emt 0:00:33]} Qd8 {[%emt 0:04:19]} 28. Re3 {[%emt 0:00:23]} Rh8 {[%emt 0:02:25]} 29. h4 {[%emt 0:01:46]} h5 {[%emt 0:00:28]} 30. Rg3 {[%emt 0:00:20]} Rh6 {[%emt 0:03:28]} 31. Qg5 {[%emt 0:00:50]} Qh8 {[%emt 0:00:52]} 32. Rb1 {[%emt 0:01:21]} Bc4 {[%emt 0:02:11]} 33. Rb7 {[%emt 0:00:43]} Kf8 {[%emt 0:04:29]} 1-0

[Event "Suryabinayak Municipality Open B 2024"]
[Site "Bhaktapur"]
[Date "2024.12.03"]
[Round "1.4"]
[White "Singh, Suraj"]
[Black "Rajbhandari, Rijendra"]
[Result "0-1"]
[ECO "C55"]
[WhiteElo "1655"]
[BlackElo "1999"]
[Annotator "RC"]
[PlyCount "42"]
[EventDate "2024.12.02"]
[EventCountry "NEP"]
[SourceTitle "playchess.com"]
[Source "ChessBase"]
[SourceQuality "1"]
[TimeControl "5400+30"]

1. e4 {[%emt 0:00:05]} e5 {[%emt 0:00:36]} 2. Nf3 {[%emt 0:00:26]} Nc6 {[%emt 0:00:27]} 3. Bc4 {[%emt 0:00:28]} Bc5 {[%emt 0:00:15]} 4. O-O {[%emt 0:00:33]} Nf6 {[%emt 0:00:06]} 5. Nc3 {[%emt 0:00:56]} O-O {[%emt 0:02:20]} 6. a3 {[%emt 0:01:47]} d6 {[%emt 0:01:27]} 7. h3 {[%emt 0:02:16]} Be6 {[%emt 0:01:28]} 8. Be2 d5 {[%emt 0:05:48]} 9. exd5 {[%emt 0:02:09]} Nxd5 {[%emt 0:00:06]} 10. Nxd5 {[%emt 0:01:02]} Qxd5 {[%emt 0:00:20]} 11. d3 {[%emt 0:02:53]} Rad8 {[%emt 0:04:09]} 12. b4 {[%emt 0:01:30]} Be7 {[%emt 0:02:40]} 13. Bb2 {[%emt 0:01:03]} Bf6 {[%emt 0:16:20]} 14. Qc1 {[%emt 0:05:47]} Rfe8 {[%emt 0:07:02]} 15. Re1 {[%emt 0:01:37]} Bf5 {[%emt 0:05:33]} 16. Bf1 {[%emt 0:02:25]} Nd4 {[%emt 0:06:54]} 17. Nxd4 {[%emt 0:05:39]} exd4 {[%emt 0:00:05]} 18. Qd2 {[%emt 0:01:53]} c5 {[%emt 0:06:12]} 19. Be2 {[%emt 0:03:08]} cxb4 {[%emt 0:01:32]} 20. Bf3 {[%emt 0:02:33]} Qd7 {[%emt 0:02:34]} 21. axb4 {[%emt 0:03:01]} a6 {[%emt 0:01:00]} 0-1

[Event "Suryabinayak Municipality Open B 2024"]
[Site "Bhaktapur"]
[Date "2024.12.03"]
[Round "2.1"]
[White "Maharjan, Prem Krishna"]
[Black "Jaiswal, Rupesh"]
[Result "0-1"]
[ECO "B90"]
[WhiteElo "1899"]
[BlackElo "2062"]
[Annotator "NA RC"]
[PlyCount "92"]
[EventDate "2024.12.02"]
[EventCountry "NEP"]
[SourceTitle "playchess.com"]
[Source "ChessBase"]
[SourceQuality "1"]
[TimeControl "5400+30"]

1. e4 {[%emt 0:02:11]} c5 {[%emt 0:00:02]} 2. Nf3 {[%emt 0:00:18]} d6 {[%emt 0:00:02]} 3. d4 {[%emt 0:00:02]} cxd4 {[%emt 0:00:05]} 4. Nxd4 {[%emt 0:00:02]} Nf6 {[%emt 0:00:04]} 5. Nc3 {[%emt 0:00:20]} a6 {[%emt 0:00:01]} 6. Bd3 {[%emt 0:00:29]} e5 {[%emt 0:00:34]} 7. Nde2 {[%emt 0:00:08]} Be7 {[%emt 0:00:46] B90: Sicilian Najdorf: Unusual White 6th moves, 6 Be3 Ng4 and 6 Be3 e5.} 8. Bg5 {[%emt 0:00:29] [#]} (8. O-O $11 {should be considered.}) 8... Nxe4 $1 {[%emt 0:04:55]} 9. Bxe7 {[%emt 0:02:39]} Nxc3 {[%emt 0:00:05]} 10. Nxc3 {[%emt 0:01:05]} Qxe7 {[%emt 0:00:18]} 11. Be4 {[%emt 0:01:51]} Nc6 {[%emt 0:04:52]} 12. Qd3 {[%emt 0:00:32]} Be6 {[%emt 0:02:11]} 13. O-O {[%emt 0:02:11]} Nd4 {[%emt 0:08:28]} 14. f4 {[%emt 0:01:11]} Rc8 {[%emt 0:10:29]} (14... f5 $17 15. Bd5 O-O) 15. Rf2 {[%emt 0:02:37]} (15. Nd5 $1 $15 Bxd5 16. Bxd5) 15... Bc4 {[%emt 0:29:00]} ({Black should try} 15... f5 $17 16. Bd5 O-O) 16. Qh3 {[%emt 0:06:42]} Qd7 {[%emt 0:04:17]} 17. Qg3 {[%emt 0:13:53]} f5 {[%emt 0:05:52]} 18. Bd3 {[%emt 0:05:08]} (18. fxe5 $11 {keeps the balance.} O-O (18... fxe4 19. exd6 Be6 20. Nxe4 $14) 19. Bd5+ Bxd5 20. Nxd5) 18... Bxd3 {[%emt 0:03:04]} 19. cxd3 {[%emt 0:00:58]} Nc6 {[%emt 0:03:47]} 20. Nd5 {[%emt 0:01:22]} Qf7 {[%emt 0:01:20]} 21. Nb6 {[%emt 0:00:38]} Rd8 {[%emt 0:00:28]} 22. fxe5 {[%emt 0:01:43]} dxe5 {[%emt 0:00:56]} 23. Nc4 {[%emt 0:01:18] [#]} O-O {[%emt 0:04:11]} (23... f4 $1 $19 {[%cal Rf4g3]} 24. Qg4 O-O (24... Rxd3 25. Qc8+ Rd8 26. Nd6+ Kf8 27. Nxf7 $11)) 24. Nxe5 {[%emt 0:04:35]} Nxe5 {[%emt 0:01:21]} 25. Qxe5 {[%emt 0:00:05]} Rxd3 {[%emt 0:00:06]} 26. Raf1 {[%emt 0:01:39]} g6 {[%emt 0:03:10]} 27. b3 {[%emt 0:04:53]} Qd5 {[%emt 0:00:27]} 28. Qf4 {[%emt 0:00:44]} Qd4 {[%emt 0:00:59]} 29. g4 {[%emt 0:01:26]} Qxf4 {[%emt 0:02:03]} 30. Rxf4 {[%emt 0:00:09]} Rd5 {[%emt 0:01:09]} 31. R1f2 {[%emt 0:00:15]} Kg7 {[%emt 0:01:03]} 32. Kg2 {[%emt 0:00:23]} b5 {[%emt 0:04:17]} 33. h3 {[%emt 0:03:19]} g5 34. Rxf5 {[%emt 0:00:38]} Rfxf5 {[%emt 0:00:30]} 35. gxf5 {[%emt 0:00:45]} Kf6 {[%emt 0:00:01]} 36. Kg3 {[%emt 0:01:26]} h5 {[%emt 0:00:58]} 37. Rc2 {[%emt 0:00:21]} Kxf5 {[%emt 0:00:19]} 38. Rf2+ {[%emt 0:00:33]} Ke6 {[%emt 0:01:50]} 39. Rc2 {[%emt 0:41:02]} Rd3+ {[%emt 0:00:15]} 40. Kg2 {[%emt 0:00:00]} Kd6 {[%emt 0:00:55]} 41. Kh2 {[%emt 0:00:00]} h4 {[%emt 0:00:56]} 42. Rg2 {[%emt 0:00:00]} Rd5 {[%emt 0:00:19]} 43. Rc2 {[%emt 0:00:00]} Rf5 {[%emt 0:00:45]} 44. Kg2 {[%emt 0:00:00]} b4 $19 {[%emt 0:00:25]} 45. Rc4 {[%emt 0:00:00]} a5 {[%emt 0:00:13]} 46. Rc2 {[%emt 0:00:00]} Kd5 {[%emt 0:00:22]} 0-1

[Event "Suryabinayak Municipality Open B 2024"]
[Site "Bhaktapur"]
[Date "2024.12.03"]
[Round "2.2"]
[White "Silwal, Purushottam"]
[Black "Kachhepati, Rajesh"]
[Result "1-0"]
[ECO "C41"]
[WhiteElo "2058"]
[BlackElo "1831"]
[Annotator "RC"]
[PlyCount "53"]
[EventDate "2024.12.02"]
[EventCountry "NEP"]
[SourceTitle "playchess.com"]
[Source "ChessBase"]
[SourceQuality "1"]
[TimeControl "5400+30"]

1. e4 {[%emt 0:01:55]} e5 {[%emt 0:01:25]} 2. Nf3 {[%emt 0:00:12]} d6 {[%emt 0:00:51]} 3. d4 {[%emt 0:02:04]} exd4 {[%emt 0:01:11]} 4. Nxd4 {[%emt 0:00:18]} Nf6 {[%emt 0:00:46]} 5. Nc3 {[%emt 0:00:07]} Be7 {[%emt 0:00:32]} 6. h3 {[%emt 0:00:09]} a6 {[%emt 0:00:37]} 7. g4 {[%emt 0:00:09]} h6 {[%emt 0:00:40]} 8. Bg2 {[%emt 0:00:06]} c5 {[%emt 0:03:46]} 9. Nf5 {[%emt 0:01:06]} Bxf5 {[%emt 0:01:09]} 10. exf5 {[%emt 0:00:11]} Nc6 {[%emt 0:00:21]} 11. Bf4 {[%emt 0:06:58]} Qc7 {[%emt 0:02:31]} 12. Qd2 {[%emt 0:01:51]} b5 {[%emt 0:06:00]} 13. O-O-O {[%emt 0:01:02]} O-O-O {[%emt 0:01:13]} 14. Nd5 {[%emt 0:02:34]} Nxd5 {[%emt 0:00:34]} 15. Qxd5 {[%emt 0:00:07]} Kb7 {[%emt 0:02:19]} 16. Rhe1 {[%emt 0:11:32]} Bf8 {[%emt 0:02:48]} 17. Re3 {[%emt 0:05:24]} Kb6 {[%emt 0:01:27]} 18. c3 {[%emt 0:01:31]} Na7 {[%emt 0:03:11]} 19. Red3 {[%emt 0:09:18]} Nc8 {[%emt 0:01:57]} 20. Kb1 {[%emt 0:02:34]} a5 {[%emt 0:03:39]} 21. b4 {[%emt 0:02:39]} axb4 {[%emt 0:03:43]} 22. cxb4 {[%emt 0:00:11]} cxb4 {[%emt 0:02:06]} 23. Rc1 {[%emt 0:02:00]} Qd7 {[%emt 0:00:57]} 24. Be3+ {[%emt 0:01:29]} Ka6 {[%emt 0:01:09]} 25. Rc6+ {[%emt 0:00:15]} Ka5 {[%emt 0:00:39]} 26. Ra3+ {[%emt 0:00:39]} bxa3 {[%emt 0:00:43]} 27. Bd2+ {[%emt 0:00:09]} 1-0

[Event "Suryabinayak Municipality Open B 2024"]
[Site "Bhaktapur"]
[Date "2024.12.03"]
[Round "2.3"]
[White "Pradhan, Rahul Chau"]
[Black "Nepal, Prakash Chandra"]
[Result "1/2-1/2"]
[ECO "E04"]
[WhiteElo "1873"]
[BlackElo "2012"]
[Annotator "NA RC"]
[PlyCount "66"]
[EventDate "2024.12.02"]
[EventCountry "NEP"]
[SourceTitle "playchess.com"]
[Source "ChessBase"]
[SourceQuality "1"]
[TimeControl "5400+30"]

1. d4 {[%emt 0:02:38]} d5 {[%emt 0:00:21]} 2. Nf3 {[%emt 0:00:20]} Nf6 {[%emt 0:00:08]} 3. c4 {[%emt 0:00:19]} e6 {[%emt 0:00:34]} 4. g3 {[%emt 0:00:23]} c5 {[%emt 0:01:53]} 5. Bg2 {[%emt 0:00:52]} dxc4 {[%emt 0:03:05]} 6. Qa4+ {[%emt 0:00:36]} Bd7 {[%emt 0:01:56] E04: Open Catalan: 5 Nf3.} 7. Qxc4 {[%emt 0:00:21]} Qb6 {[%emt 0:09:58]} 8. dxc5 {[%emt 0:04:30]} Bxc5 {[%emt 0:00:21]} 9. O-O {[%emt 0:00:28]} Bb5 {[%emt 0:00:57]} 10. Qc2 {[%emt 0:00:37]} Ng4 {[%emt 0:01:08]} (10... Nbd7 $11 {is more appropriate.}) 11. a4 {[%emt 0:08:41]} (11. h3 $11 Bxf2+ (11... Nxf2 12. b4 $18) 12. Kh1) 11... Bxf2+ {[%emt 0:05:48]} 12. Kh1 {[%emt 0:01:47]} Bc6 {[%emt 0:00:29]} 13. Nc3 {[%emt 0:10:07]} Be3 {[%emt 0:03:07]} 14. Nd1 {[%emt 0:05:19]} (14. h3 $1 $11 Bxc1 15. hxg4) 14... Bxc1 {[%emt 0:04:30]} 15. Qxc1 {[%emt 0:01:30]} O-O {[%emt 0:01:17]} 16. Qg5 {[%emt 0:01:57]} Nf6 {[%emt 0:01:35]} 17. a5 {[%emt 0:03:39]} Qb4 {[%emt 0:00:45]} 18. Ne5 {[%emt 0:14:00]} Bxg2+ {[%emt 0:00:58]} 19. Kxg2 {[%emt 0:00:22]} Qe4+ {[%emt 0:05:22]} 20. Kg1 {[%emt 0:03:10]} Nbd7 {[%emt 0:02:00]} 21. Nxd7 {[%emt 0:00:54]} Nxd7 {[%emt 0:00:03]} 22. Nc3 {[%emt 0:00:47]} (22. Qb5 $142 Nf6 23. Ra4) 22... Qe5 {[%emt 0:05:12]} 23. Qe7 {[%emt 0:03:23]} (23. Qxe5 $142 Nxe5 24. Rf4) 23... Nc5 {[%emt 0:06:05]} 24. Rad1 {[%emt 0:08:13]} Qe3+ {[%emt 0:17:33]} 25. Kh1 {[%emt 0:01:00]} Ne4 {[%emt 0:01:52]} 26. Rf3 {[%emt 0:07:57]} Qc5 {[%emt 0:05:14]} 27. Qxc5 {[%emt 0:00:38]} Nxc5 {[%emt 0:00:02]} 28. b4 {[%emt 0:00:37]} Na6 {[%emt 0:00:22]} 29. Rd7 {[%emt 0:02:31]} Nxb4 {[%emt 0:01:54]} 30. Rxb7 {[%emt 0:00:19]} Nc6 {[%emt 0:00:32]} 31. a6 {[%emt 0:01:15] [#]} Nb8 $17 {[%emt 0:03:20]} 32. Nb5 {[%emt 0:03:36]} Nxa6 {[%emt 0:00:16]} 33. Nxa7 {[%emt 0:03:16]} Nc5 {[%emt 0:01:25]} 1/2-1/2

[Event "Suryabinayak Municipality Open B 2024"]
[Site "Bhaktapur"]
[Date "2024.12.03"]
[Round "2.4"]
[White "Rajbhandari, Rijendra"]
[Black "Maharjan, Sanubhai"]
[Result "1-0"]
[ECO "E11"]
[WhiteElo "1999"]
[BlackElo "1782"]
[Annotator "NA RC"]
[PlyCount "79"]
[EventDate "2024.12.02"]
[EventCountry "NEP"]
[SourceTitle "playchess.com"]
[Source "ChessBase"]
[SourceQuality "1"]
[TimeControl "5400+30"]

1. d4 {[%emt 0:00:30]} Nf6 {[%emt 0:03:25]} 2. c4 {[%emt 0:00:00]} e6 {[%emt 0:00:35]} 3. g3 {[%emt 0:00:00]} d5 {[%emt 0:00:58]} 4. Nf3 {[%emt 0:00:00]} Bb4+ {[%emt 0:01:44]} 5. Bd2 {[%emt 0:00:12]} a5 {[%emt 0:01:05]} 6. Bg2 {[%emt 0:04:29]} O-O {[%emt 0:01:03]} 7. O-O {[%emt 0:00:17]} Ne4 {[%emt 0:03:03] E11: Bogo-Indian.} 8. Bxb4 {[%emt 0:05:12]} axb4 {[%emt 0:00:23]} 9. Nbd2 {[%emt 0:00:06]} f5 {[%emt 0:00:24]} 10. Ne5 {[%emt 0:04:15]} Nd7 {[%emt 0:01:03]} 11. Ndf3 {[%emt 0:01:53]} c6 {[%emt 0:03:30]} 12. e3 {[%emt 0:09:32]} g5 {[%emt 0:06:44]} 13. Nxd7 {[%emt 0:04:03]} Bxd7 {[%emt 0:01:07]} 14. Ne5 {[%emt 0:00:06]} g4 {[%emt 0:00:41]} 15. Qe1 {[%emt 0:02:15]} Qe7 {[%emt 0:02:31]} 16. c5 {[%emt 0:00:18]} b3 {[%emt 0:01:47]} 17. Qb4 {[%emt 0:07:57]} b5 {[%emt 0:14:14]} 18. Bxe4 {[%emt 0:00:36]} ({Weaker is} 18. Qxb3 Nd2 19. Qd1 Nxf1 $14) (18. axb3 Ng5 19. Ra3 Rxa3 $18) 18... Ra4 {[%emt 0:03:12]} 19. Qxb3 {[%emt 0:00:30]} fxe4 {[%emt 0:00:51]} 20. Nxg4 {[%emt 0:00:37]} e5 {[%emt 0:01:12]} 21. Nxe5 {[%emt 0:00:43]} Bh3 {[%emt 0:00:24]} 22. Nxc6 {[%emt 0:03:00]} Qe6 {[%emt 0:02:25]} 23. Qxd5 {[%emt 0:01:23]} Qxd5 {[%emt 0:02:22]} 24. Ne7+ {[%emt 0:00:04]} Kf7 {[%emt 0:00:28]} 25. Nxd5 {[%emt 0:00:02]} Bxf1 {[%emt 0:00:17]} 26. Kxf1 {[%emt 0:00:06]} Rfa8 {[%emt 0:04:04]} 27. a3 {[%emt 0:01:43]} R4a5 {[%emt 0:01:22]} 28. Rc1 {[%emt 0:01:04]} Kg6 {[%emt 0:01:39]} 29. c6 {[%emt 0:00:26]} b4 {[%emt 0:03:02]} 30. Nxb4 {[%emt 0:00:36]} Kf5 {[%emt 0:01:39]} 31. d5 {[%emt 0:02:15]} Rc8 {[%emt 0:03:03]} 32. d6 {[%emt 0:01:41]} Ra7 {[%emt 0:01:41]} 33. Rc5+ {[%emt 0:01:53]} Ke6 {[%emt 0:00:59]} 34. d7 {[%emt 0:01:44]} Rf8 {[%emt 0:01:18]} 35. Rh5 {[%emt 0:00:27]} Rh8 {[%emt 0:01:44] [#]} 36. Rxh7 $3 {[%emt 0:00:57]} Rd8 {[%emt 0:01:25]} 37. h4 {[%emt 0:01:40]} Kd6 {[%emt 0:02:18]} 38. Rh6+ {[%emt 0:00:35]} Kc5 {[%emt 0:02:09]} 39. c7 {[%emt 0:02:59]} Rxc7 {[%emt 0:00:27]} 40. Na6+ $18 {[%emt 0:00:04]} 1-0

[Event "Suryabinayak Municipality Open B 2024"]
[Site "Bhaktapur"]
[Date "2024.12.04"]
[Round "4.1"]
[White "Silwal, Purushottam"]
[Black "Rajbhandari, Rijendra"]
[Result "1/2-1/2"]
[ECO "B13"]
[WhiteElo "2058"]
[BlackElo "1999"]
[Annotator "RC"]
[PlyCount "40"]
[EventDate "2024.12.02"]
[EventCountry "NEP"]
[SourceTitle "playchess.com"]
[Source "ChessBase"]
[SourceQuality "1"]
[TimeControl "5400+30"]

1. e4 {[%emt 0:04:01]} c6 {[%emt 0:00:10]} 2. d4 {[%emt 0:00:35]} d5 {[%emt 0:00:08]} 3. exd5 {[%emt 0:00:03]} cxd5 {[%emt 0:00:08]} 4. c4 {[%emt 0:00:05]} Nf6 {[%emt 0:00:28]} 5. Nc3 {[%emt 0:00:05]} Nc6 {[%emt 0:00:12]} 6. Nf3 {[%emt 0:00:05]} Bg4 {[%emt 0:00:45]} 7. cxd5 {[%emt 0:00:07]} Nxd5 {[%emt 0:00:31]} 8. Qb3 {[%emt 0:00:09]} Bxf3 {[%emt 0:02:10]} 9. gxf3 {[%emt 0:00:05]} e6 {[%emt 0:02:51]} 10. Qxb7 {[%emt 0:01:28]} Nxd4 {[%emt 0:00:09]} 11. Bb5+ {[%emt 0:00:05]} Nxb5 {[%emt 0:00:21]} 12. Qc6+ {[%emt 0:00:05]} Ke7 {[%emt 0:00:46]} 13. Qxb5 {[%emt 0:00:04]} Qd7 {[%emt 0:00:14]} 14. Nxd5+ {[%emt 0:00:18]} Qxd5 {[%emt 0:00:39]} 15. Qxd5 {[%emt 0:00:05]} exd5 {[%emt 0:00:08]} 16. Be3 {[%emt 0:00:08]} Ke6 {[%emt 0:01:09]} 17. O-O-O {[%emt 0:00:06]} Rc8+ {[%emt 0:06:49]} 18. Kb1 {[%emt 0:00:06]} Bc5 {[%emt 0:00:09]} 19. Rhe1 {[%emt 0:00:07]} Bxe3 {[%emt 0:03:46]} 20. Rxe3+ {[%emt 0:00:16]} Kd6 {[%emt 0:00:07]} 1/2-1/2

[Event "Suryabinayak Municipality Open B 2024"]
[Site "Bhaktapur"]
[Date "2024.12.04"]
[Round "4.3"]
[White "Phuyal, Aashish"]
[Black "Nepal, Prakash Chandra"]
[Result "1-0"]
[ECO "A29"]
[WhiteElo "1907"]
[BlackElo "2012"]
[Annotator "RC"]
[PlyCount "65"]
[EventDate "2024.12.02"]
[EventCountry "NEP"]
[SourceTitle "playchess.com"]
[Source "ChessBase"]
[SourceQuality "1"]
[TimeControl "5400+30"]

1. c4 {[%emt 0:00:30]} e5 {[%emt 0:01:39]} 2. Nc3 {[%emt 0:05:51]} Nf6 {[%emt 0:00:16]} 3. g3 {[%emt 1:25:39]} d5 {[%emt 0:00:32]} 4. cxd5 {[%emt 0:00:00]} Nxd5 {[%emt 0:00:02]} 5. Bg2 {[%emt 0:01:00]} Nb6 {[%emt 0:02:10]} 6. Nf3 {[%emt 0:00:00]} Nc6 {[%emt 1:28:51]} 7. O-O {[%emt 0:00:00]} Be7 {[%emt 0:00:00]} 8. d3 {[%emt 0:00:00]} O-O {[%emt 0:00:00]} 9. a3 {[%emt 0:02:00]} Be6 {[%emt 0:00:00]} 10. b4 {[%emt 0:00:00]} Nd4 {[%emt 0:00:00]} 11. Rb1 {[%emt 0:00:00]} Nxf3+ {[%emt 0:00:00]} 12. Bxf3 {[%emt 0:00:00]} Nd5 {[%emt 0:00:00]} 13. Bb2 {[%emt 0:00:00]} f6 {[%emt 0:00:00]} 14. d4 {[%emt 0:00:00]} exd4 {[%emt 0:00:00]} 15. Qxd4 {[%emt 0:00:00]} Nxc3 {[%emt 0:00:00]} 16. Qxc3 {[%emt 0:00:00]} Qc8 {[%emt 0:00:00]} 17. Qe3 {[%emt 0:00:00]} Bd6 {[%emt 0:00:00]} 18. Bxb7 {[%emt 0:00:00]} Qxb7 {[%emt 0:00:00]} 19. Qxe6+ {[%emt 0:00:00]} Kh8 {[%emt 0:00:00]} 20. Qc4 {[%emt 0:00:00]} Rfe8 {[%emt 0:00:00]} 21. Rfd1 {[%emt 0:00:00]} Re4 {[%emt 0:00:00]} 22. Rd4 {[%emt 0:00:00]} Rae8 {[%emt 0:00:00]} 23. Rxe4 {[%emt 0:00:00]} Rxe4 {[%emt 0:00:00]} 24. Qd3 {[%emt 0:00:00]} Re7 {[%emt 0:00:00]} 25. Rc1 {[%emt 0:00:00]} Qe4 {[%emt 0:00:00]} 26. Qxe4 {[%emt 0:00:00]} Rxe4 {[%emt 0:05:17]} 27. e3 {[%emt 0:00:00]} a5 {[%emt 0:00:20]} 28. Bd4 {[%emt 0:00:00]} axb4 {[%emt 0:00:30]} 29. axb4 {[%emt 0:00:00]} Bxb4 {[%emt 0:00:30]} 30. Rb1 {[%emt 0:00:00]} Rxd4 31. exd4 Bf8 {[%emt 0:04:40]} 32. Rb7 {[%emt 0:00:00]} Kg8 {[%emt 0:01:02]} 33. Rxc7 {[%emt 0:00:00]} 1-0